bitfinex-derivatives/quotes_ETHF0:USTF0_20241024
["timestamp","ask_amount","ask_price","bid_price","bid_amount"]
[1729771096648,0.39569,2529.6,2529.5,4.54951]
[1729771096852,0.39569,2529.6,2529.5,4.1538]
[1729771097355,0.39569,2529.6,2529.5,4.54951]
[1729771097761,0.39569,2529.6,2529.5,5.29355753]
[1729771097960,0.39569,2529.6,2529.5,5.73605753]
[1729771098362,0.39569,2529.6,2529.5,6.13176753]
[1729771103454,0.39569,2529.6,2529.5,4.5963]
[1729771103652,0.39569,2529.6,2529.5,6.13176753]
[1729771105660,0.39569,2529.7,2529.6,0.39567]
[1729771105860,0.39567,2529.8,2529.7,0.39566]
[1729771106057,0.39567,2529.8,2529.7,1.53541753]
[1729771107862,0.39567,2529.8,2529.7,1.13975753]
[1729771108265,1.85969,2530.0,2529.6,0.4126]
[1729771108566,2.40598753,2530.0,2529.9,1.13975753]
[1729771108967,6.35878753,2530.0,2529.9,1.13975753]
[1729771110465,5.21903,2530.0,2529.9,1.13975753]
[1729771113772,1.26623,2530.0,2529.9,1.13975753]
[1729771119160,5.96315753,2530.0,2529.5,4.1528]
[1729771119359,0.39564,2529.9,2529.8,1.13975753]
[1729771121170,5.48819753,2529.9,2529.8,1.13975753]
[1729771122770,6.08169753,2529.9,2529.4,0.4145]
[1729771122972,0.39567,2529.7,2529.6,1.13975753]
[1729771123477,5.20007,2529.7,2529.6,1.13975753]
[1729771129177,1.24727,2529.7,2529.6,1.13975753]
[1729771129579,0.39567,2529.7,2529.6,1.13975753]
[1729771132377,3.2078,2529.9,2529.6,1.13975753]
[1729771132682,3.60344,2529.9,2529.8,1.13975753]
[1729771133277,4.01234,2529.9,2529.8,1.13975753]
[1729771133671,3.60344,2529.9,2529.8,1.53541753]
[1729771133877,3.60344,2529.9,2529.8,1.13975753]
[1729771135483,0.39564,2529.9,2529.8,1.13975753]
[1729771144589,0.39566,2529.8,2529.7,1.57245753]
[1729771144890,1.61616,2529.8,2529.7,1.57245753]
[1729771145085,1.61616,2529.8,2529.7,1.13975753]
[1729771145285,6.70871753,2529.8,2529.7,1.13975753]
[1729771145490,6.31305753,2529.8,2529.6,1.13975753]
[1729771145790,1.53542753,2529.7,2529.6,1.13975753]
[1729771148096,5.48822753,2529.7,2529.6,1.13975753]
[1729771149098,5.48822753,2529.7,2529.5,1.13975753]
[1729771149099,0.39569,2529.6,2529.5,1.13975753]
[1729771149292,1.53544753,2529.6,2529.5,1.13975753]
[1729771149498,5.48904753,2529.6,2529.5,1.13975753]
[1729771150195,1.53544753,2529.6,2529.5,1.13975753]
[1729771150396,0.39569,2529.6,2529.5,1.13975753]
[1729771156994,0.39569,2529.6,2529.5,1.58085753]
[1729771159901,0.39569,2529.6,2529.5,1.97656753]
[1729771160200,0.39568,2529.8,2529.7,0.39566]
[1729771160396,0.39568,2529.8,2529.7,1.53541753]
[1729771160797,0.39568,2529.8,2529.7,1.96031753]
[1729771161799,0.39568,2529.8,2529.7,5.91311753]
[1729771162207,0.39565,2529.9,2529.8,0.39564]
[1729771162402,0.39564,2530.0,2529.9,0.39562]
[1729771162604,0.39564,2530.0,2529.9,1.97047753]
[1729771162902,4.19675,2530.4,2529.9,6.66741506]
[1729771163100,0.39561,2530.2,2530.1,1.53534753]
[1729771163304,3.2078,2530.4,2530.1,2.27951506]
[1729771163600,3.60336,2530.4,2530.3,1.13975753]
[1729771165206,4.74311753,2530.4,2530.3,1.13975753]
[1729771165506,3.60336,2530.4,2530.3,1.13975753]
[1729771167310,3.60336,2530.4,2530.3,1.55205753]
[1729771169008,3.60336,2530.4,2530.3,1.96375753]
[1729771169410,0.39556,2530.4,2530.3,1.96375753]
[1729771182215,0.39556,2530.4,2530.3,1.55205753]
[1729771182414,0.83206,2530.4,2530.3,1.55205753]
[1729771182715,0.83206,2530.4,2530.3,1.13975753]
[1729771186518,0.39556,2530.4,2530.3,1.53533753]
[1729771187312,0.39556,2530.4,2530.3,1.13975753]
[1729771188710,0.39556,2530.4,2530.3,1.53533753]
[1729771189623,0.39556,2530.4,2530.3,1.13975753]
[1729771190018,0.39556,2530.4,2530.3,1.53533753]
[1729771192130,0.39556,2530.4,2530.3,1.13975753]
[1729771193917,0.39556,2530.4,2530.3,1.53533753]
[1729771194123,0.39556,2530.4,2530.3,1.13975753]
[1729771195422,0.39556,2530.4,2530.3,1.53533753]
[1729771196921,0.39563,2530.1,2530.0,0.39561]
[1729771197116,1.97779,2530.5,2530.1,0.39559]
[1729771197117,0.39561,2530.2,2530.1,0.39559]
[1729771197418,0.39561,2530.2,2530.1,5.88290506]
[1729771198113,0.39561,2530.2,2530.1,10.77690506]
[1729771198318,0.39561,2530.2,2530.1,11.64320506]
[1729771198518,0.39561,2530.2,2530.1,10.70120506]
[1729771198717,0.39558,2530.4,2530.3,0.39556]
[1729771198920,0.39558,2530.4,2530.3,1.53531753]
[1729771199323,0.39558,2530.4,2530.3,1.13975753]
[1729771200324,0.39558,2530.4,2530.3,1.53533753]
[1729771201027,0.98878,2530.8,2530.3,5.71018442]
[1729771201218,0.39556,2530.5,2530.4,5.16378689]
[1729771201416,0.39556,2530.5,2530.4,6.30354442]
[1729771201729,0.39556,2530.5,2530.4,5.68511753]
[1729771202329,0.4385,2530.9,2530.4,9.85993103]
[1729771202330,1.42723,2530.9,2530.4,9.85993103]
[1729771202634,1.42723,2530.9,2530.8,2.67500506]
[1729771202635,0.39549,2530.9,2530.8,2.67500506]
[1729771203016,0.39549,2530.9,2530.8,3.08760506]
[1729771203422,0.39549,2530.9,2530.8,0.8081]
[1729771203724,0.39549,2530.9,2530.8,3.08761506]
[1729771205527,0.39549,2530.9,2530.8,0.4126]
[1729771205731,0.39549,2530.9,2530.8,1.55235753]
[1729771206023,0.39549,2530.9,2530.5,0.942]
[1729771206024,5.09095753,2530.9,2530.5,0.942]
[1729771206327,0.39553,2530.6,2530.5,0.942]
[1729771206733,0.39553,2530.6,2530.3,3.6332]
[1729771206734,0.39556,2530.4,2530.3,4.5732]
[1729771206934,0.39556,2530.4,2530.3,4.96878]
[1729771207227,0.39556,2530.4,2530.3,5.71295753]
[1729771207416,0.80286,2530.4,2530.3,5.71295753]
[1729771208029,0.80286,2530.4,2530.3,4.34755753]
[1729771208217,0.80286,2530.4,2530.3,1.13975753]
[1729771208418,0.4073,2530.4,2530.0,0.4254]
[1729771208620,1.54705753,2530.4,2530.2,1.13975753]
[1729771208819,0.3956,2530.2,2530.1,1.13975753]
[1729771209224,4.3476,2530.2,2530.1,1.13975753]
[1729771209436,0.3956,2530.2,2530.1,1.13975753]
[1729771209621,0.3956,2530.2,2530.1,6.23151506]
[1729771209822,0.4073,2530.4,2530.3,0.39558]
[1729771209823,0.39558,2530.4,2530.3,0.39558]
[1729771210027,0.39558,2530.4,2530.3,1.53533753]
[1729771210531,0.39558,2530.4,2530.3,1.13975753]
[1729771211932,0.39558,2530.4,2530.3,1.53533753]
[1729771212328,0.39558,2530.4,2530.3,2.86535879]
[1729771214028,0.39558,2530.4,2530.3,6.81735879]
[1729771215731,0.39556,2530.5,2530.4,0.39556]
[1729771216240,0.39556,2530.5,2530.4,1.33656]
[1729771218840,0.39556,2530.5,2530.4,1.73836]
[1729771219446,0.39556,2530.5,2530.4,1.3428]
[1729771219739,0.39556,2530.5,2530.4,0.941]
[1729771220040,0.39558,2530.3,2530.2,0.4343]
[1729771220634,0.39558,2530.3,2530.2,0.8299]
[1729771220835,0.39558,2530.3,2530.2,0.4343]
[1729771221031,0.802,2530.4,2530.1,3.81867879]
[1729771221235,0.3956,2530.2,2530.1,3.41077879]
[1729771221548,0.3956,2530.2,2530.1,3.80638879]
[1729771221929,0.3956,2530.2,2530.1,3.41077879]
[1729771222736,0.3956,2530.2,2530.1,7.75838879]
[1729771223840,0.3956,2530.2,2530.1,7.36277879]
[1729771224041,0.3956,2530.2,2530.1,7.75838879]
[1729771224442,0.3956,2530.2,2530.1,7.36277879]
[1729771224641,0.3956,2530.2,2530.1,3.41077879]
[1729771225046,0.3956,2530.2,2530.1,3.80638879]
[1729771225345,0.3956,2530.2,2530.1,7.36277879]
[1729771225647,0.3956,2530.2,2530.1,7.75838879]
[1729771228649,0.3956,2530.2,2530.1,7.36277879]
[1729771228844,0.3956,2530.2,2530.1,7.75838879]
[1729771229042,0.3956,2530.2,2530.1,6.81738879]
[1729771229240,0.3956,2530.2,2530.1,7.75838879]
[1729771229655,0.3956,2530.2,2530.1,7.36277879]
[1729771229953,0.3956,2530.2,2530.1,7.75838879]
[1729771230149,1.60788,2530.4,2530.3,0.39558]
[1729771230451,0.98884,2530.7,2530.3,2.46977879]
[1729771230652,0.39552,2530.7,2530.6,2.46977879]
[1729771231948,5.44116,2530.9,2530.4,2.46977879]
[1729771232154,0.39555,2530.5,2530.4,2.46977879]
[1729771232661,0.80035,2530.5,2530.4,2.46977879]
[1729771233058,0.39558,2530.3,2530.2,2.46977879]
[1729771233553,0.79628,2530.3,2530.2,2.46977879]
[1729771234256,0.79628,2530.3,2530.2,1.13996988]
[1729771234257,0.4007,2530.3,2530.2,1.13996988]
[1729771234556,0.79628,2530.3,2530.2,1.13996988]
[1729771236559,0.39566,2529.8,2529.7,0.4065]
[1729771236857,0.39566,2529.8,2529.7,1.13996988]
[1729771238454,0.39566,2529.8,2529.3,2.47075066]
[1729771238455,3.9528,2529.8,2529.3,2.47075066]
[1729771238656,0.39572,2529.4,2529.3,2.47075066]
[1729771239461,0.80212,2529.4,2529.3,2.47075066]
[1729771242859,0.98915,2529.9,2529.3,6.42435066]
[1729771243162,3.2078,2530.0,2529.9,2.47075066]
[1729771243163,3.60343,2530.0,2529.9,2.47075066]
[1729771243553,3.2078,2530.0,2529.9,2.86639066]
[1729771243853,0.4144,2530.4,2529.9,2.47075066]
[1729771244061,0.3956,2530.2,2530.1,2.47075066]
[1729771249672,0.3956,2530.2,2530.1,2.86636066]
[1729771249864,0.3956,2530.2,2530.1,2.47075066]
[1729771250862,0.3956,2530.2,2530.1,2.86636066]
[1729771251765,0.3956,2530.2,2530.1,2.47075066]
[1729771252369,0.3956,2530.2,2530.1,2.86636066]
[1729771253268,0.39559,2530.3,2530.2,0.39558]
[1729771258265,0.39555,2530.6,2530.2,3.952]
[1729771258468,3.2078,2530.7,2530.6,0.39553]
[1729771258469,0.39553,2530.7,2530.6,0.39553]
[1729771258665,3.2078,2531.1,2530.6,0.94]
[1729771258966,0.39546,2531.1,2531.0,0.39547]
[1729771259178,3.2078,2531.5,2530.9,3.2078]
[1729771259361,3.2078,2531.8,2531.4,0.3954]
[1729771259567,3.2078,2531.8,2531.3,2.47075066]
[1729771259568,3.60315,2531.8,2531.7,2.47075066]
[1729771259773,3.60315,2531.8,2531.7,0.94]
[1729771259967,3.60315,2531.8,2531.7,3.41075066]
[1729771260968,3.2078,2531.8,2531.7,3.41075066]
[1729771261162,3.60315,2531.8,2531.7,3.41075066]
[1729771262068,0.39535,2531.8,2531.7,3.41075066]
[1729771262262,0.39535,2531.8,2531.7,7.36035066]
[1729771266364,0.39531,2532.1,2531.9,0.39532]
[1729771266565,0.39533,2532.0,2531.9,6.42035066]
[1729771266774,0.39531,2532.1,2531.9,2.86607066]
[1729771267077,0.39531,2532.1,2532.0,2.86606066]
[1729771267271,3.60308,2532.3,2532.1,0.39529]
[1729771267482,0.98806,2532.7,2532.2,7.87153066]
[1729771267673,0.39522,2532.6,2532.5,2.47075066]
[1729771267981,0.39522,2532.6,2532.5,3.42675066]
[1729771268570,3.6474,2532.8,2532.3,2.47075066]
[1729771268766,0.39521,2532.7,2532.3,2.47075066]
[1729771268975,0.39525,2532.4,2532.3,2.47075066]
[1729771269577,0.39525,2532.4,2531.9,5.67855066]
[1729771269578,0.39531,2532.0,2531.9,5.67855066]
[1729771269882,0.39531,2532.0,2531.9,2.47075066]
[1729771270470,0.39535,2531.8,2531.7,2.47075066]
[1729771271076,4.76135,2531.8,2531.7,2.47075066]
[1729771271281,0.39538,2531.6,2531.5,3.2078]
[1729771271681,4.34578,2531.6,2531.5,3.2078]
[1729771272277,0.39546,2531.1,2531.0,3.42675066]
[1729771272584,0.39546,2531.1,2531.0,2.47075066]
[1729771273575,0.39546,2531.1,2531.0,2.86622066]
[1729771274274,0.39546,2531.1,2531.0,2.47075066]
[1729771275477,0.39546,2531.1,2531.0,3.42675066]
[1729771276675,0.39546,2531.1,2531.0,3.82222066]
[1729771276876,0.39546,2531.1,2531.0,2.47075066]
[1729771277075,0.39546,2531.1,2531.0,3.42675066]
[1729771277677,0.39546,2531.1,2531.0,2.47075066]
[1729771277979,4.34666,2531.1,2531.0,2.47075066]
[1729771278178,0.39547,2531.0,2530.9,3.2078]
[1729771278473,4.34667,2531.0,2530.9,3.2078]
[1729771280185,4.34667,2531.0,2530.9,5.67855066]
[1729771280186,0.39547,2531.0,2530.9,5.67855066]
[1729771280985,0.39547,2531.0,2530.9,6.07404066]
[1729771282079,0.39547,2531.0,2530.9,5.67855066]
[1729771282983,0.39547,2531.0,2530.9,6.63455066]
[1729771283187,0.39547,2531.0,2530.9,3.2078]
[1729771284484,4.34667,2531.0,2530.9,3.2078]
[1729771287084,0.3955,2530.8,2530.7,2.47075066]
[1729771287486,4.3467,2530.8,2530.7,2.47075066]
[1729771288079,0.39552,2530.7,2530.6,3.2078]
[1729771288289,5.16702,2530.7,2530.6,3.2078]
[1729771291286,1.21582,2530.7,2530.6,5.67855066]
[1729771294489,0.39555,2530.5,2530.4,2.47075066]
[1729771295587,4.34755,2530.5,2530.4,2.47075066]
[1729771295898,0.39558,2530.3,2530.2,2.47075066]
[1729771296494,4.34758,2530.3,2530.2,2.47075066]
[1729771297494,0.39558,2530.3,2530.2,2.47075066]
[1729771298087,0.39558,2530.3,2530.2,2.86635066]
[1729771298788,1.39337,2530.6,2530.3,0.39556]
[1729771298789,0.39558,2530.4,2530.3,0.39556]
[1729771298998,0.39558,2530.4,2530.3,2.86631066]
[1729771299892,0.39555,2530.6,2530.5,0.39553]
[1729771300091,0.39555,2530.6,2530.5,7.88338066]
[1729771303200,0.39555,2530.6,2530.5,4.67558066]
[1729771303498,0.39555,2530.6,2530.5,7.88338066]
[1729771304300,0.39555,2530.6,2530.5,11.83538066]
[1729771304893,0.39553,2530.7,2530.6,0.39552]
[1729771305092,0.39553,2530.7,2530.6,2.86627066]
[1729771305293,0.9887,2531.0,2530.6,2.47075066]
[1729771305494,0.39552,2530.8,2530.7,0.39551]
[1729771307501,0.39553,2530.7,2530.6,0.39552]
[1729771307692,0.39553,2530.7,2530.6,2.86627066]
[1729771311404,0.39552,2530.8,2530.7,0.3955]
[1729771311609,0.39552,2530.8,2530.7,2.86625066]
[1729771313109,0.39552,2530.8,2530.7,2.47075066]
[1729771313407,0.39552,2530.8,2530.7,2.86627066]
[1729771318112,0.8511,2531.1,2530.7,2.47075066]
[1729771318305,0.8511,2531.1,2530.8,0.39549]
[1729771318306,0.3955,2530.9,2530.8,0.39549]
[1729771318511,1.83975,2531.1,2530.7,2.86625066]
[1729771318512,0.3955,2530.8,2530.7,2.86625066]
[1729771319904,0.3955,2530.8,2530.7,3.24592636]
[1729771321415,1.83975,2531.1,2530.7,2.85042636]
[1729771321611,0.3955,2530.9,2530.8,0.39549]
[1729771322113,0.81967,2531.1,2531.0,0.39547]
[1729771322313,0.81967,2531.1,2531.0,2.47075066]
[1729771322513,0.81967,2531.1,2531.0,3.80822066]
[1729771322908,0.81967,2531.1,2531.0,3.41275066]
[1729771328615,0.81967,2531.1,2531.0,3.80822066]
[1729771330521,0.81967,2531.1,2531.0,3.41275066]
[1729771330917,0.81967,2531.1,2531.0,3.80822066]
[1729771331520,0.81967,2531.1,2531.0,3.41275066]
[1729771331820,0.81967,2531.1,2531.0,3.80822066]
[1729771332121,0.81967,2531.1,2531.0,3.41275066]
[1729771332321,0.81967,2531.1,2531.0,2.08158648]
[1729771333319,0.81967,2531.1,2531.0,2.47705648]
[1729771333623,0.81967,2531.1,2531.0,2.08158648]
[1729771333813,0.81967,2531.1,2531.0,2.47705648]
[1729771335916,0.81967,2531.1,2531.0,2.08158648]
[1729771336321,0.81967,2531.1,2531.0,1.13958648]
[1729771337027,0.81967,2531.1,2531.0,1.53505648]
[1729771337219,0.81967,2531.1,2531.0,1.13958648]
[1729771338427,0.81967,2531.1,2531.0,1.53505648]
[1729771339024,0.81967,2531.1,2531.0,1.94695648]
[1729771339214,0.39547,2531.1,2531.0,3.08654296]
[1729771339420,0.39546,2531.2,2531.1,0.39544]
[1729771339625,0.39546,2531.2,2531.1,2.67461296]
[1729771341021,0.39546,2531.2,2531.1,2.67463296]
[1729771341924,0.39544,2531.3,2531.2,0.39542]
[1729771342221,0.39544,2531.3,2531.2,1.53500648]
[1729771343129,0.39544,2531.3,2531.2,1.53502648]
[1729771343428,0.39544,2531.3,2531.2,1.13958648]
[1729771343831,0.39544,2531.3,2531.2,1.53502648]
[1729771346924,0.39544,2531.3,2531.2,1.13958648]
[1729771347125,0.39544,2531.3,2531.2,1.53502648]
[1729771347531,0.39544,2531.3,2531.2,2.47502648]
[1729771348329,0.39544,2531.3,2531.2,2.07958648]
[1729771349135,0.39544,2531.3,2531.2,2.47502648]
[1729771349332,0.39544,2531.3,2531.2,1.53502648]
[1729771350133,0.39544,2531.3,2531.2,2.47502648]
[1729771352336,0.83082,2531.4,2531.3,0.39542]
[1729771352634,0.83082,2531.4,2531.3,2.36470648]
[1729771356136,0.83082,2531.4,2531.3,1.96928648]
[1729771356531,0.83082,2531.4,2531.3,2.36470648]
[1729771357333,0.98826,2532.1,2531.4,1.97705]
[1729771357532,0.98826,2532.1,2531.9,0.39533]
[1729771357533,0.79561,2532.0,2531.9,0.39533]
[1729771357834,0.427,2532.1,2532.0,0.39531]
[1729771357835,0.8223,2532.1,2532.0,0.39531]
[1729771358143,0.3953,2532.1,2532.0,0.39531]
[1729771358342,0.3953,2532.1,2532.0,0.81461]
[1729771359034,0.4003,2532.2,2532.0,2.69847296]
[1729771359247,3.2078,2532.6,2532.1,1.13958648]
[1729771359429,3.2078,2532.6,2532.5,1.13958648]
[1729771359430,0.39522,2532.6,2532.5,1.13958648]
[1729771360542,0.39522,2532.6,2532.5,1.53482648]
[1729771361239,1.21672,2532.7,2532.6,0.39522]
[1729771361440,1.21672,2532.7,2532.6,2.67439296]
[1729771362539,1.21672,2532.7,2532.6,2.27917296]
[1729771362733,1.21672,2532.7,2532.6,1.13958648]
[1729771362940,1.21672,2532.7,2532.6,2.07858648]
[1729771363240,1.21672,2532.7,2532.6,3.21817296]
[1729771363444,1.21672,2532.7,2532.6,2.07858648]
[1729771366750,1.21672,2532.7,2532.6,3.21817296]
[1729771367448,1.21672,2532.7,2532.6,2.07858648]
[1729771367946,1.21672,2532.7,2532.6,3.61339296]
[1729771369450,1.21672,2532.7,2532.6,3.21817296]
[1729771369749,1.21672,2532.7,2532.6,3.61339296]
[1729771370546,1.21672,2532.7,2532.6,2.07858648]
[1729771371949,1.21672,2532.7,2532.6,3.61339296]
[1729771374740,1.21672,2532.7,2532.6,3.21817296]
[1729771375448,1.21672,2532.7,2532.6,3.61339296]
[1729771375651,1.21672,2532.7,2532.6,3.21817296]
[1729771376253,1.21672,2532.7,2532.6,2.07858648]
[1729771376448,1.21672,2532.7,2532.6,1.13958648]
[1729771377648,1.21672,2532.7,2532.6,2.67439296]
[1729771378244,1.21672,2532.7,2532.6,2.27917296]
[1729771380654,0.39522,2532.7,2532.6,2.27917296]
[1729771380855,0.39522,2532.7,2532.6,2.67439296]
[1729771381050,0.39522,2532.7,2532.6,3.10737296]
[1729771381357,0.39522,2532.7,2532.6,1.13958648]
[1729771382056,0.39522,2532.7,2532.6,2.67439296]
[1729771382359,0.39522,2532.7,2532.6,2.27917296]
[1729771383260,0.39522,2532.7,2532.6,2.67439296]
[1729771383758,0.39524,2532.5,2532.4,3.2078]
[1729771384063,0.39524,2532.5,2532.4,4.74263648]
[1729771384254,0.39524,2532.5,2532.4,4.34738648]
[1729771385151,0.39524,2532.5,2532.4,4.74263648]
[1729771385349,1.23274,2532.6,2532.5,0.39524]
[1729771385656,0.83284,2532.6,2532.5,2.67441296]
[1729771386057,0.80018,2532.9,2532.8,0.39519]
[1729771386256,4.1956,2533.3,2532.8,7.16617296]
[1729771386555,0.79411,2533.3,2533.2,1.53471648]
[1729771386766,0.79411,2533.3,2533.2,1.13958648]
[1729771387153,2.54431,2533.3,2533.2,1.13958648]
[1729771389765,2.14531,2533.3,2533.2,1.13958648]
[1729771390067,2.14531,2533.3,2533.2,1.53471648]
[1729771390965,5.0266,2533.6,2533.3,0.3951]
[1729771391158,4.43397,2533.6,2533.5,2.27917296]
[1729771391466,4.43397,2533.6,2533.5,2.07758648]
[1729771392160,0.39513,2533.2,2533.1,0.4306]
[1729771392360,0.39513,2533.2,2533.1,2.90332648]
[1729771392556,1.42382,2533.5,2533.1,2.50818648]
[1729771392765,0.39512,2533.3,2533.2,0.39512]
[1729771393352,0.39511,2533.4,2533.3,0.3951]
[1729771393557,0.39511,2533.4,2533.3,2.67427296]
[1729771393757,0.39511,2533.4,2533.3,1.53469648]
[1729771393954,0.39511,2533.4,2533.3,6.62148296]
[1729771394366,0.39511,2533.4,2533.3,2.67428296]
[1729771394562,0.39511,2533.4,2533.3,6.62148296]
[1729771394769,0.39511,2533.4,2533.3,2.67428296]
[1729771395066,0.39511,2533.4,2533.3,1.13958648]
[1729771395268,0.39511,2533.4,2533.3,1.53469648]
[1729771395470,0.39511,2533.4,2533.3,1.13958648]
[1729771395657,0.39511,2533.4,2533.3,6.62148296]
[1729771396166,4.0389,2533.6,2533.4,0.39509]
[1729771396167,0.39509,2533.5,2533.4,0.39509]
[1729771396362,0.9876,2533.8,2533.4,2.70057296]
[1729771396566,5.18294,2533.9,2533.3,3.2078]
[1729771396765,0.39508,2533.5,2533.4,0.938]
[1729771397475,0.39508,2533.5,2533.4,2.07758648]
[1729771398273,0.39508,2533.5,2533.4,1.13958648]
[1729771398467,0.39508,2533.5,2533.4,2.07758648]
[1729771398663,0.39508,2533.5,2533.4,1.13958648]
[1729771398870,4.34228,2533.5,2533.4,1.13958648]
[1729771402368,0.39508,2533.5,2533.4,1.13958648]
[1729771405274,0.39508,2533.5,2533.4,2.27917296]
[1729771405466,0.39508,2533.5,2533.4,3.08827296]
[1729771405666,0.4001,2533.7,2533.4,7.45417296]
[1729771405876,0.79515,2533.7,2533.6,2.27917296]
[1729771408178,0.79515,2533.7,2533.6,1.13958648]
[1729771408577,0.79515,2533.7,2533.6,2.07758648]
[1729771408969,0.79515,2533.7,2533.6,1.13958648]
[1729771409575,4.74235,2533.7,2533.6,1.13958648]
[1729771410380,4.3473,2533.7,2533.4,0.938]
[1729771410579,0.39508,2533.5,2533.4,0.938]
[1729771410880,0.39508,2533.5,2533.0,4.0149]
[1729771410881,0.39514,2533.1,2533.0,4.0149]
[1729771411074,0.39514,2533.1,2533.0,6.09248648]
[1729771411984,0.4414,2533.3,2532.7,3.2078]
[1729771412273,0.39519,2532.8,2532.7,3.2078]
[1729771412480,0.39519,2532.8,2532.7,4.1458]
[1729771413476,0.39519,2532.8,2532.7,6.42497296]
[1729771413874,0.39519,2532.8,2532.7,6.82018296]
[1729771414373,0.39519,2532.8,2532.7,6.61320036]
[1729771414782,0.39519,2532.8,2532.7,3.40540036]
[1729771415079,0.4389,2533.0,2532.7,3.40540036]
[1729771415285,0.4389,2533.0,2532.9,2.46740036]
[1729771415583,0.39517,2533.0,2532.9,2.86257036]
[1729771416676,0.4138,2533.2,2532.9,2.46740036]
[1729771416875,0.39516,2533.0,2532.9,2.86257036]
[1729771417276,0.39515,2533.1,2533.0,0.39515]
[1729771417477,0.39515,2533.1,2533.0,3.26215036]
[1729771417686,0.39515,2533.1,2533.0,2.86700036]
[1729771418285,0.39515,2533.1,2533.0,3.26216036]
[1729771418980,0.4076,2533.4,2533.0,6.81500036]
[1729771419182,0.8027,2533.4,2533.3,2.46740036]
[1729771420189,0.8027,2533.4,2533.3,3.40440036]
[1729771420995,0.9162,2533.4,2533.3,3.40440036]
[1729771423295,0.39511,2533.3,2533.2,0.937]
[1729771423484,0.39511,2533.3,2533.2,3.40440036]
[1729771423891,0.39511,2533.3,2533.2,2.46740036]
[1729771424193,0.83001,2533.3,2533.2,2.46740036]
[1729771424586,0.39511,2533.3,2533.2,2.46740036]
[1729771425586,0.39511,2533.3,2533.2,2.46740036]
[1729771425783,3.3213,2533.4,2533.2,2.46740036]
[1729771426194,0.39511,2533.3,2533.2,2.86252036]
[1729771426602,0.39511,2533.3,2533.2,3.79952036]
[1729771427084,0.39511,2533.3,2533.2,3.40440036]
[1729771427289,0.39511,2533.3,2533.2,3.79953036]
[1729771428386,0.39511,2533.3,2533.2,7.00733036]
[1729771430392,0.39511,2533.3,2533.2,7.13087079]
[1729771430600,0.39511,2533.3,2533.2,7.1308702]
[1729771432700,0.39511,2533.3,2533.2,3.9230702]
[1729771433002,0.39511,2533.3,2533.2,7.1308702]
[1729771433800,0.39511,2533.3,2533.2,5.7987402]
[1729771434000,0.39511,2533.3,2533.2,3.40440036]
[1729771434505,0.39511,2533.3,2533.2,2.07564726]
[1729771434900,0.39511,2533.3,2533.2,2.47077726]
[1729771435403,0.39511,2533.3,2533.2,2.59432067]
[1729771435600,0.39511,2533.3,2533.2,5.80212067]
[1729771435997,0.39511,2533.3,2533.2,5.67857726]
[1729771436700,0.79591,2533.4,2533.3,0.39511]
[1729771436900,0.79591,2533.4,2533.3,1.53375726]
[1729771436901,0.3951,2533.4,2533.3,1.53375726]
[1729771437102,0.3951,2533.4,2533.3,1.13864726]
[1729771437399,0.3951,2533.4,2533.3,1.53375726]
[1729771437904,0.3951,2533.4,2533.3,1.13864726]
[1729771438105,0.3951,2533.4,2533.3,1.53375726]
[1729771438706,0.5089,2533.4,2533.3,1.53375726]
[1729771441101,0.5089,2533.4,2533.3,2.67240452]
[1729771441408,0.1138,2533.4,2533.3,6.61960452]
[1729771442493,0.39508,2533.6,2533.5,0.39508]
[1729771442699,1.24576,2533.7,2533.6,0.39507]
[1729771442900,1.24576,2533.7,2533.6,2.67236452]
[1729771443497,1.24576,2533.7,2533.6,2.27729452]
[1729771444109,1.39603,2534.0,2533.6,6.22449452]
[1729771444110,0.4085,2534.0,2533.6,6.22449452]
[1729771444299,4.63668,2534.1,2533.9,1.13864726]
[1729771444607,0.83639,2534.1,2534.0,1.13864726]
[1729771445401,0.83639,2534.1,2534.0,1.53364726]
[1729771446009,1.84581,2534.3,2534.0,1.53364726]
[1729771446010,0.39498,2534.2,2534.1,0.39498]
[1729771446209,0.39498,2534.2,2534.1,3.60927452]
[1729771446919,1.41602,2534.5,2534.1,3.21429452]
[1729771447104,1.41602,2534.5,2534.4,2.27729452]
[1729771447105,0.82363,2534.5,2534.4,2.27729452]
[1729771449111,0.4287,2534.5,2534.4,2.27729452]
[1729771449308,0.3949,2534.7,2534.6,0.39491]
[1729771449517,0.3949,2534.7,2534.6,2.07464726]
[1729771449913,1.97402,2535.4,2534.6,5.28244726]
[1729771449914,4.1948,2535.4,2534.6,5.28244726]
[1729771450219,4.1948,2535.4,2534.9,3.2078]
[1729771450220,0.39485,2535.0,2534.9,3.2078]
[1729771450515,0.39485,2535.0,2534.9,5.28244726]
[1729771450718,0.39485,2535.0,2534.9,0.936]
[1729771450907,0.39485,2535.0,2534.9,2.07464726]
[1729771452913,0.39485,2535.0,2534.9,1.13864726]
[1729771453520,0.4201,2535.2,2534.9,4.34644726]
[1729771453718,0.39485,2535.0,2534.9,3.60265]
[1729771453913,0.39485,2535.0,2534.9,5.87994452]
[1729771454118,0.39485,2535.0,2534.9,4.74129726]
[1729771454909,0.39485,2535.0,2534.9,4.34644726]
[1729771455123,0.39485,2535.0,2534.9,5.28244726]
[1729771457812,0.39485,2535.0,2534.9,6.42109452]
[1729771458011,0.39485,2535.0,2534.9,6.81595452]
[1729771458412,0.39485,2535.0,2534.9,6.42109452]
[1729771460215,0.39485,2535.0,2534.9,5.28244726]
[1729771461724,4.33965,2535.0,2534.9,2.40604]
[1729771461920,3.9448,2534.9,2534.2,4.1428]
[1729771462123,4.34644726,2535.0,2534.2,3.2078]
[1729771462124,0.39496,2534.3,2534.2,3.2078]
[1729771462321,0.39496,2534.3,2534.2,4.1428]
[1729771462514,0.39496,2534.3,2534.2,3.2078]
[1729771462720,0.39496,2534.3,2534.2,4.34644726]
[1729771462922,0.83196,2534.3,2534.2,4.34644726]
[1729771463316,4.77756,2534.3,2534.2,4.34644726]
[1729771464121,0.39496,2534.3,2534.2,5.48509452]
[1729771464324,0.39496,2534.3,2534.2,5.6737324]